bitfinex-derivatives/quotes_SOLF0:USTF0_20241021
["timestamp","ask_amount","ask_price","bid_price","bid_amount"]
[1729483652200,2.9577,169.09,169.05,2.95995106]
[1729483652500,2.9577,169.09,169.06,1.4799752]
[1729483652696,2.9577,169.09,169.04,2.9584]
[1729483653002,2.9577,169.09,169.05,2.95995228]
[1729483653195,2.9577,169.09,169.06,1.47997614]
[1729483653391,2.9577,169.09,169.05,2.98171825]
[1729483653591,2.9577,169.09,169.04,2.9584]
[1729483653592,2.9577,169.09,169.06,1.47997614]
[1729483653803,2.9577,169.09,169.07,3.00006728]
[1729483653995,2.9577,169.09,169.04,2.9584]
[1729483654196,2.9577,169.09,169.05,1.48002953]
[1729483654495,2.9577,169.09,169.06,1.48002953]
[1729483654700,2.9577,169.09,169.05,2.92903876]
[1729483654905,2.9577,169.09,169.06,1.48002953]
[1729483655203,2.9577,169.09,169.05,2.99432544]
[1729483655396,2.9577,169.09,169.06,1.48002953]
[1729483655697,2.9577,169.09,169.07,2.89754335]
[1729483655903,2.9577,169.09,169.04,2.9584]
[1729483656104,2.9577,169.09,169.05,2.9600453]
[1729483656297,2.9577,169.09,169.06,1.48002265]
[1729483656607,2.9577,169.09,169.05,2.94933804]
[1729483656809,2.9577,169.09,169.06,1.48001792]
[1729483657102,2.9577,169.09,169.07,2.9517058]
[1729483657302,2.7577,169.09,169.04,2.9584]
[1729483657610,2.7577,169.09,169.05,2.96003576]
[1729483657810,2.7577,169.09,169.06,1.48001788]
[1729483658108,2.7577,169.09,169.04,2.9584]
[1729483658312,2.7577,169.09,169.05,1.48013958]
[1729483658612,2.7577,169.09,169.05,2.90642244]
[1729483658795,2.7577,169.09,169.04,2.9584]
[1729483659206,2.7577,169.09,169.05,1.48002971]
[1729483659397,2.7577,169.09,169.06,1.48002971]
[1729483659596,2.7577,169.09,169.04,2.9584]
[1729483659800,2.7577,169.09,169.05,2.96006494]
[1729483660004,2.7577,169.09,169.06,1.48003247]
[1729483660204,2.7577,169.09,169.04,2.9584]
[1729483660395,2.7577,169.09,169.05,2.96006494]
[1729483660601,2.7577,169.09,169.06,1.48003247]
[1729483660896,2.7577,169.09,169.04,2.9584]
[1729483661096,2.7577,169.09,169.05,2.96006168]
[1729483661302,2.7577,169.09,169.06,1.48003084]
[1729483661502,2.7577,169.09,169.04,2.9584]
[1729483661702,2.7577,169.09,169.05,2.96006168]
[1729483661902,2.7577,169.09,169.06,1.48003084]
[1729483662103,2.7577,169.09,169.04,2.9584]
[1729483662499,2.7577,169.09,169.05,1.48002396]
[1729483662810,2.7577,169.09,169.06,1.48002396]
[1729483663006,2.7577,169.09,169.05,3.00261259]
[1729483663207,2.7577,169.09,169.06,1.48003084]
[1729483663407,2.7577,169.09,169.07,2.9546655]
[1729483663613,2.7577,169.09,169.04,2.9584]
[1729483663907,2.7577,169.09,169.05,2.96006168]
[1729483664103,2.7577,169.09,169.06,1.48003084]
[1729483664315,2.7577,169.09,169.04,2.9584]
[1729483664501,2.7577,169.09,169.05,2.96005842]
[1729483664705,2.7577,169.09,169.06,1.48002921]
[1729483665006,2.7577,169.09,169.04,2.9584]
[1729483665202,2.7577,169.09,169.05,2.96006168]
[1729483665404,4.64,169.1,169.06,1.48003084]
[1729483665613,4.64,169.11,169.07,1.48003085]
[1729483665806,4.64,169.11,169.08,2.92506853]
[1729483666007,4.64,169.11,169.06,2.9581]
[1729483666210,7.5974,169.11,169.07,5.91770954]
[1729483666410,7.5974,169.11,169.08,1.47990477]
[1729483666611,7.5974,169.11,169.09,1.47990477]
[1729483666813,7.5974,169.11,169.07,2.9579]
[1729483667015,7.5974,169.11,169.08,2.95962118]
[1729483667211,7.5974,169.11,169.09,1.47981059]
[1729483667413,7.5974,169.11,169.07,2.9579]
[1729483667611,7.5974,169.11,169.08,2.95947625]
[1729483667917,7.5974,169.11,169.09,1.47974184]
[1729483668108,7.5974,169.11,169.07,2.9579]
[1729483668304,7.5974,169.11,169.08,2.95951336]
[1729483668615,7.5974,169.11,169.09,1.47975668]
[1729483668817,2.9574,169.11,169.07,2.9579]
[1729483669009,2.9574,169.11,169.08,2.9596107]
[1729483669212,2.9574,169.11,169.09,1.47980535]
[1729483669409,2.9574,169.11,169.07,2.9579]
[1729483669609,2.9574,169.11,169.08,1.47981222]
[1729483669916,2.9574,169.11,169.09,1.47981059]
[1729483670107,2.9574,169.11,169.07,2.9579]
[1729483670307,2.9574,169.11,169.08,2.95964744]
[1729483670518,2.9574,169.11,169.09,1.47982372]
[1729483670716,2.9574,169.11,169.07,2.9579]
[1729483670919,2.9574,169.11,169.08,2.95964546]
[1729483671105,2.9574,169.11,169.07,2.9579]
[1729483671106,2.9574,169.11,169.09,1.47982273]
[1729483671309,2.9574,169.11,169.07,2.9579]
[1729483671506,2.9574,169.11,169.08,1.47982387]
[1729483671709,2.9575,169.1,169.06,5.85367156]
[1729483671905,2.9575,169.1,169.07,2.9597806]
[1729483672113,2.9575,169.1,169.08,1.4798903]
[1729483672312,2.9575,169.1,169.06,5.85367156]
[1729483672507,2.9575,169.1,169.07,2.95978386]
[1729483672712,2.9575,169.1,169.08,1.47989193]
[1729483672917,2.9575,169.1,169.06,5.85367156]
[1729483673112,2.9575,169.1,169.07,1.47988343]
[1729483673308,2.9575,169.1,169.08,1.47988343]
[1729483673514,2.9575,169.1,169.09,1.47986552]
[1729483675625,2.9571,169.13,169.09,4.43736552]
[1729483675920,2.9571,169.13,169.1,1.47976447]
[1729483676115,2.9571,169.13,169.09,2.9575]
[1729483676423,4.62,169.14,169.06,2.89547156]
[1729483676627,4.62,169.17,169.15,2.9566]
[1729483676927,4.62,169.19,169.15,2.93229423]
[1729483677222,4.62,169.19,169.09,4.62]
[1729483677523,4.62,169.19,169.1,5.48072974]
[1729483677722,4.62,169.19,169.11,2.95882974]
[1729483677926,4.62,169.19,169.12,2.95882974]
[1729483678234,4.62,169.19,169.13,2.95882974]
[1729483678414,4.62,169.19,169.14,2.95882974]
[1729483678615,4.62,169.19,169.15,1.47941488]
[1729483678823,4.62,169.19,169.1,4.0053]
[1729483679016,4.62,169.19,169.11,2.95862456]
[1729483679223,4.62,169.19,169.12,2.95862456]
[1729483679425,4.62,169.19,169.13,2.95862456]
[1729483679724,4.62,169.19,169.14,1.47931228]
[1729483680125,4.62,169.19,169.1,4.0053]
[1729483680427,4.62,169.19,169.11,2.95862954]
[1729483680627,4.62,169.19,169.13,2.9569]
[1729483680829,4.62,169.19,169.14,1.47931477]
[1729483681126,4.62,169.19,169.13,2.9569]
[1729483681325,4.62,169.19,169.14,1.47931203]
[1729483681528,2.9563,169.18,169.1,4.0053]
[1729483681729,2.9563,169.18,169.11,2.95866362]
[1729483682029,2.9563,169.18,169.12,2.95866362]
[1729483682219,2.9563,169.18,169.13,1.47933181]
[1729483682418,2.9563,169.18,169.12,2.957]
[1729483682623,2.9563,169.18,169.13,1.47932545]
[1729483682827,2.9563,169.18,169.12,2.957]
[1729483683020,2.9563,169.18,169.13,1.47932569]
[1729483683217,2.9563,169.18,169.12,2.957]
[1729483683422,2.9563,169.18,169.13,1.4793272]
[1729483683619,2.9563,169.18,169.12,2.957]
[1729483683827,2.9563,169.18,169.13,1.47932695]
[1729483684029,2.9563,169.18,169.12,2.957]
[1729483684230,2.9563,169.18,169.13,1.47930923]
[1729483684418,2.9563,169.18,169.12,2.957]
[1729483684624,2.9563,169.18,169.13,1.47930923]
[1729483684825,2.9563,169.18,169.12,2.957]
[1729483685323,4.62,169.19,169.1,2.7219]
[1729483685530,1.3062,169.18,169.11,1.47944042]
[1729483685730,1.3062,169.18,169.1,0.2]
[1729483685927,1.3062,169.18,169.11,1.47945335]
[1729483686133,1.3062,169.18,169.1,0.2]
[1729483687134,2.9572,169.12,169.1,0.2]
[1729483687435,4.62,169.15,169.1,0.2]
[1729483687627,1.2342,169.14,169.1,0.2]
[1729483687932,2.9573,169.11,169.1,0.2]
[1729483689435,1.2342,169.14,169.03,7.5787]
[1729483689735,2.958,169.08,169.04,2.95984998]
[1729483690034,2.958,169.08,169.03,5.9599509]
[1729483690335,2.9582,169.07,169.04,1.47996361]
[1729483690533,2.9582,169.07,169.05,2.95905077]
[1729483690734,2.9582,169.07,169.02,2.9589]
[1729483691032,2.9582,169.07,169.03,1.48006486]
[1729483691229,4.62,169.1,169.02,5.95938162]
[1729483691430,2.9579,169.08,169.03,1.48006649]
[1729483691626,2.9579,169.08,169.02,5.85669229]
[1729483691831,2.9579,169.08,169.03,1.48007471]
[1729483692133,2.9579,169.08,169.03,2.9587]
[1729483692631,2.9583,169.06,169.02,2.89779229]
[1729483692834,2.9583,169.06,169.03,1.4800874]
[1729483693035,2.9583,169.06,169.02,2.94129469]
[1729483693236,2.9583,169.06,169.01,2.959]
[1729483693430,2.9583,169.06,169.03,1.4800874]
[1729483693632,2.9583,169.06,169.03,2.93754865]
[1729483693831,2.9583,169.06,169.01,2.959]
[1729483694032,2.9583,169.06,169.02,2.96017162]
[1729483694229,2.9583,169.06,169.03,1.48008581]
[1729483694437,2.9583,169.06,169.01,2.959]
[1729483694638,2.9579,169.08,169.03,2.9587]
[1729483694938,4.62,169.1,169.03,2.9587]
[1729483695132,2.9579,169.09,169.03,2.9587]
[1729483695742,2.9579,169.09,168.99,151.93610122]
[1729483695743,4.62,169.1,168.99,151.93610122]
[1729483695940,4.62,169.1,169.0,2.96014776]
[1729483696239,4.62,169.1,169.01,2.96014776]
[1729483696539,4.62,169.1,169.02,2.96014776]
[1729483696736,4.62,169.1,168.99,151.93610122]
[1729483696942,4.62,169.1,169.0,2.96016391]
[1729483697137,4.62,169.1,169.01,2.96016391]
[1729483697443,4.62,169.1,169.02,2.96016391]
[1729483697643,4.62,169.1,169.03,1.4800844]
[1729483697837,2.9579,169.08,169.03,2.9587]
[1729483699839,4.62,169.1,169.04,4.43841675]
[1729483699840,7.5776,169.1,169.04,4.43841675]
[1729483700037,7.5776,169.1,168.99,151.93610122]
[1729483700247,7.5776,169.1,169.0,1.47996446]
[1729483700436,7.5776,169.1,169.04,2.9584]
[1729483701046,7.5776,169.1,169.05,1.47994803]
[1729483701346,7.5776,169.1,169.04,2.9584]
[1729483701738,7.3776,169.1,169.04,2.9584]
[1729483702338,7.3776,169.1,168.99,151.93610122]
[1729483702550,7.3776,169.1,169.05,2.9582]
[1729483706941,7.1776,169.1,169.05,2.9582]
[1729483707739,1.2311,169.12,169.02,4.62]
[1729483707740,1.2311,169.12,169.08,2.9577]
[1729483707945,5.8511,169.12,169.08,5.89087937]
[1729483708847,8.8083,169.12,169.08,5.89087937]
[1729483711653,4.1883,169.12,169.08,5.89087937]
[1729483712955,2.9574,169.11,169.08,2.93317937]
[1729483713247,2.9574,169.11,169.07,2.958]
[1729483713645,2.9578,169.09,169.02,2.9588]
[1729483713850,2.9578,169.09,169.03,2.9597014]
[1729483714057,2.9578,169.09,169.04,2.9597014]
[1729483714246,2.9578,169.09,169.05,1.4798507]
[1729483714455,2.9578,169.09,169.04,2.9585]
[1729483714751,2.9578,169.09,169.05,1.47994203]
[1729483714952,2.9578,169.09,169.04,2.9585]
[1729483715947,2.9581,169.07,169.02,4.62]
[1729483716147,2.9581,169.07,169.03,2.96004914]
[1729483716354,2.9581,169.07,168.99,151.93610122]
[1729483716552,2.9581,169.07,169.02,2.9588]
[1729483716756,2.9581,169.07,169.03,2.96004938]
[1729483717058,2.9581,169.07,169.02,2.9588]
[1729483717353,2.9581,169.07,169.03,2.96006159]
[1729483717550,2.9581,169.07,169.02,2.9588]
[1729483717750,2.9581,169.07,169.03,2.96005832]
[1729483717953,2.9581,169.07,169.02,2.9588]
[1729483718454,4.62,169.1,168.99,147.31610122]
[1729483718648,4.62,169.1,169.0,2.96039986]
[1729483718955,2.9585,169.05,169.01,1.48019993]
[1729483719152,2.9585,169.05,169.0,2.9593]
[1729483719350,2.9585,169.05,169.01,1.48021871]
[1729483719550,2.9585,169.05,169.0,2.9593]
[1729483719751,2.9585,169.05,169.01,1.48022532]
[1729483719949,2.9585,169.05,169.0,2.9593]
[1729483720150,2.9585,169.05,169.01,1.48022532]
[1729483720358,2.9585,169.05,169.0,2.9593]
[1729483720549,2.9585,169.05,169.01,1.48022532]
[1729483720754,2.9585,169.05,169.0,2.9593]
[1729483720956,2.9585,169.05,169.01,1.48022532]
[1729483721159,2.9585,169.05,169.0,2.9593]
[1729483721354,2.9585,169.05,169.01,1.48022532]
[1729483721546,2.9585,169.05,169.0,2.9593]
[1729483721752,2.9585,169.05,169.01,1.48022368]
[1729483721952,2.9585,169.05,169.0,2.9593]
[1729483722152,2.9585,169.05,169.01,1.48022368]
[1729483722355,2.9585,169.05,169.0,2.9593]
[1729483722557,2.9585,169.05,169.01,1.48022532]
[1729483722854,2.9585,169.05,169.0,2.9593]
[1729483723155,2.9585,169.05,169.01,1.48022532]
[1729483723356,2.9585,169.05,169.0,2.9593]
[1729483723556,2.9585,169.05,169.01,1.4802586]
[1729483723858,2.9585,169.05,169.0,2.9593]
[1729483724058,2.9585,169.05,169.01,1.4802586]
[1729483724254,2.9586,169.04,169.0,2.9593]
[1729483724558,2.9586,169.04,169.01,1.48024386]
[1729483724759,2.9586,169.04,169.0,2.9593]
[1729483724955,2.9586,169.04,169.01,1.48024386]
[1729483725150,2.9586,169.04,169.0,2.9593]
[1729483725458,2.9586,169.04,169.01,1.48024573]
[1729483725655,2.9586,169.04,169.0,5.89406465]
[1729483725858,2.9586,169.04,169.01,1.48024573]
[1729483726053,2.9586,169.04,169.0,5.89406465]
[1729483726859,2.9591,169.01,169.0,2.93476465]
[1729483727059,2.9591,169.01,168.96,2.9598]
[1729483727260,2.9591,169.01,168.97,2.96087916]
[1729483727559,2.9591,169.01,168.97,3.03245199]
[1729483727762,2.9591,169.01,168.96,2.9598]
[1729483727961,2.9591,169.01,168.97,1.48050428]
[1729483728158,2.9591,169.01,168.97,3.01913099]
[1729483728359,2.9591,169.01,168.96,2.9598]
[1729483728960,2.9591,169.01,168.96,5.86377833]
[1729483729261,2.7591,169.01,168.96,5.86377833]
[1729483729862,4.0017,169.05,168.96,2.90397833]
[1729483730058,4.6,169.04,168.93,4.62]
[1729483730258,4.6,169.04,168.94,1.48062033]
[1729483730455,4.6,169.04,168.94,2.9583794]
[1729483730655,4.6,169.04,168.93,4.62]
[1729483730958,4.6,169.04,168.94,1.48062037]
[1729483731160,4.6,169.04,168.93,7.51027538]
[1729483731361,4.6,169.04,168.94,1.48064176]
[1729483731560,4.6,169.04,168.93,7.51027538]
[1729483731761,2.9598,168.98,168.94,1.48064339]
[1729483731953,2.9598,168.98,168.93,2.89027538]
[1729483732159,2.9598,168.98,168.92,4.2995]
[1729483732358,2.9598,168.98,168.93,1.48070789]
[1729483732558,2.9598,168.98,168.93,2.95014287]
[1729483732863,2.9598,168.98,168.93,2.9605]
[1729483733063,2.9598,168.98,168.93,5.95772434]
[1729483733264,2.9598,168.98,168.93,2.9605]
[1729483733764,2.9598,168.98,168.93,5.92307948]
[1729483733965,2.7598,168.98,168.93,5.92307948]
[1729483740569,4.6,169.0,168.93,2.96257948]
[1729483740769,2.9596,168.98,168.91,1.2387]
[1729483741062,2.9596,168.98,168.9,4.6]
[1729483741368,2.9596,168.98,168.93,2.9605]
[1729483748577,1.3321,168.99,168.9,2.95416721]
[1729483748761,1.3321,168.99,168.88,1.2272]
[1729483748965,1.3003,168.98,168.88,1.2272]
[1729483749171,2.9605,168.94,168.88,1.2272]
[1729483749376,4.6,168.95,168.88,4.20493914]
[1729483749566,4.6,168.95,168.88,1.2272]
[1729483750264,7.5602,168.95,168.9,2.961]
[1729483752370,2.9603,168.94,168.9,2.961]
[1729483755466,1.3003,168.98,168.88,4.12615671]
[1729483755667,4.6,168.97,168.88,4.12615671]
[1729483756372,2.9598,168.97,168.93,2.9605]
[1729483756673,4.6,168.99,168.9,4.6]
[1729483757068,7.5596,168.99,168.9,4.6]
[1729483757476,2.9597,168.98,168.93,2.9604]
[1729483757673,4.6,168.99,168.9,4.6]
[1729483757882,4.6,168.99,168.88,4.12615671]
[1729483758082,2.9601,168.96,168.91,2.9608]
[1729483758287,4.6,168.95,168.88,4.12615671]
[1729483759892,7.5603,168.95,168.9,2.9609]
[1729483760688,7.5603,168.95,168.9,5.92109838]
[1729483761990,2.9605,168.94,168.9,5.92109838]
[1729483763584,4.6,168.95,168.91,2.9607]
[1729483764793,7.5603,168.95,168.91,2.9607]
[1729483766995,2.9605,168.93,168.9,2.96019838]
[1729483767188,2.9605,168.93,168.89,2.9611]
[1729483767592,2.9605,168.93,168.9,2.90752369]
[1729483775096,2.9608,168.92,168.88,2.9613]
[1729483775295,4.6,168.95,168.88,5.88570895]
[1729483775490,4.6,168.95,168.88,2.92440895]
[1729483775701,2.961,168.91,168.86,2.9616]
[1729483775894,4.6,168.91,168.86,2.9616]
[1729483776998,2.961,168.9,168.86,2.9616]
[1729483778401,7.5609,168.91,168.86,2.9616]
[1729483778800,6.79356884,168.98,168.87,2.9614]
[1729483779003,2.9605,168.93,168.84,134.47624503]
[1729483779206,7.5605,168.93,168.84,134.47624503]
[1729483780004,7.5605,168.93,168.88,2.9612]
[1729483780198,7.5605,168.93,168.88,5.92607222]
[1729483781402,7.5605,168.93,168.89,2.9612]
[1729483782197,7.5605,168.93,168.9,2.97672223]
[1729483787103,7.5605,168.93,168.9,5.93772223]
[1729483787302,7.5605,168.93,168.9,2.961]
[1729483787502,4.6,168.93,168.9,2.961]
[1729483787909,4.6,168.93,168.9,5.89049573]
[1729483788504,2.9604,168.94,168.9,5.89049573]
[1729483788811,4.6,168.94,168.9,2.92949573]
[1729483789108,4.6,168.94,168.84,139.07624503]
[1729483789304,4.6,168.94,168.85,2.96237538]
[1729483789510,4.6,168.94,168.86,2.96237538]
[1729483789711,4.6,168.94,168.87,2.96237538]
[1729483789909,4.6,168.94,168.88,2.96237538]
[1729483790111,4.6,168.94,168.89,1.48118769]
[1729483790310,4.6,168.94,168.91,2.9607]
[1729483791012,4.6,168.94,168.92,3.02773169]
[1729483795917,4.6,168.94,168.84,139.07624503]
[1729483795918,7.5604,168.94,168.84,139.07624503]
[1729483796107,7.5604,168.94,168.85,2.96298494]
[1729483796313,4.6,168.94,168.86,2.96298494]
[1729483796514,4.6,168.94,168.87,1.48149247]
[1729483796714,7.5603,168.94,168.88,1.48149247]
[1729483797017,7.5603,168.94,168.88,2.96540987]
[1729483797217,7.5603,168.94,168.89,2.9611]
[1729483806120,7.5603,168.94,168.9,1.48147346]
[1729483806313,7.5603,168.94,168.89,2.9611]
[1729483806512,7.5603,168.94,168.9,1.48147346]
[1729483806720,7.5603,168.94,168.89,2.9611]
[1729483806918,7.5603,168.94,168.9,1.48147872]
[1729483807219,7.5603,168.94,168.89,2.9611]
[1729483807408,7.5603,168.94,168.9,1.48148105]
[1729483807613,7.5603,168.94,168.89,2.9611]
[1729483807909,7.5603,168.94,168.9,1.48148105]
[1729483808108,7.5603,168.94,168.89,2.9611]
[1729483808308,7.5603,168.94,168.9,1.48148269]
[1729483808519,7.5603,168.94,168.89,2.9611]
[1729483808718,7.5603,168.94,168.9,1.48148269]
[1729483808919,2.9599,168.97,168.92,2.9606]
[1729483809118,3.8031,168.98,168.88,2.97476966]
[1729483809119,4.6,168.96,168.88,2.97476966]
[1729483809325,4.6,168.96,168.89,2.96274602]
[1729483809620,4.6,168.96,168.9,2.96274602]
[1729483809821,4.6,168.96,168.91,1.48137301]
[1729483810021,7.5601,168.96,168.92,1.48137301]
[1729483810213,7.5601,168.96,168.91,2.9607]
[1729483810418,7.5601,168.96,168.92,1.48138248]
[1729483810618,7.5601,168.96,168.91,5.98546972]
[1729483810817,7.5601,168.96,168.92,1.48138015]
[1729483811116,7.5601,168.96,168.91,5.98546972]
[1729483811318,7.5601,168.96,168.92,1.48137688]
[1729483811517,7.5601,168.96,168.91,5.98546972]
[1729483811723,7.5601,168.96,168.92,1.48137943]
[1729483811913,7.5601,168.96,168.91,5.98546972]
[1729483812119,7.5601,168.96,168.92,1.48138248]
[1729483812420,7.5601,168.96,168.91,5.98546972]
[1729483812622,7.5601,168.96,168.92,1.48138248]
[1729483812824,7.5601,168.96,168.91,5.98546972]
[1729483813025,7.5601,168.96,168.92,1.48138085]
[1729483813323,7.5601,168.96,168.92,2.9607]
[1729483814621,7.5601,168.96,168.93,1.48135693]
[1729483814818,7.5601,168.96,168.92,2.9607]
[1729483815020,7.5601,168.96,168.93,1.48132905]
[1729483815211,7.5601,168.96,168.92,2.9607]
[1729483815212,2.9603,168.95,168.91,3.02476972]
[1729483815416,4.6,168.96,168.9,2.9609]
[1729483815820,4.6,168.96,168.91,1.48147837]
[1729483816020,4.6,168.96,168.9,5.88982105]
[1729483816324,4.6,168.96,168.91,1.48147245]
[1729483816519,2.9604,168.94,168.9,5.88982105]
[1729483816720,2.9604,168.94,168.91,1.48147244]
[1729483816920,2.9604,168.94,168.9,5.88982105]
[1729483817121,2.9604,168.94,168.91,1.4814808]
[1729483817320,2.9604,168.94,168.9,5.88982105]
[1729483817525,2.9604,168.94,168.91,1.4814808]
[1729483817727,2.9604,168.94,168.9,5.88982105]
[1729483817924,4.6,168.96,168.91,1.4814808]
[1729483818125,2.9604,168.94,168.89,2.9611]
[1729483818327,2.9604,168.94,168.9,2.96306888]
[1729483818525,2.9604,168.94,168.91,1.48153444]
[1729483818723,2.961,168.91,168.88,2.96303992]
[1729483818924,7.541,168.91,168.87,2.9615]
[1729483819228,7.541,168.91,168.88,2.96323212]
[1729483819417,7.541,168.91,168.89,1.48161606]
[1729483819623,7.541,168.91,168.88,3.00658354]
[1729483819817,7.541,168.91,168.89,1.48162418]
[1729483820022,7.541,168.91,168.88,3.00658354]
[1729483820323,7.541,168.91,168.89,1.48163271]
[1729483820526,7.541,168.91,168.88,3.00658354]
[1729483820725,7.541,168.91,168.89,1.48163289]
[1729483820924,7.541,168.91,168.88,3.00658354]
[1729483821121,7.541,168.91,168.89,1.48163056]
[1729483821321,7.541,168.91,168.88,3.00658354]
[1729483821625,4.58,168.91,168.89,1.48163056]
[1729483821823,4.58,168.91,168.9,4.42444242]
[1729483822529,4.58,168.91,168.9,2.94282571]
[1729483822729,4.58,168.91,168.9,4.42444476]
[1729483825528,4.58,168.91,168.9,4.42444388]
[1729483826236,4.58,168.91,168.9,2.94282571]
[1729483826431,4.58,168.91,168.9,4.4244257]
[1729483826727,4.58,168.91,168.9,2.94282571]
[1729483827129,4.58,168.91,168.9,4.42444551]
[1729483829228,7.5408,168.91,168.9,4.42444551]
[1729483829437,4.58,168.91,168.9,4.42444551]
[1729483831228,2.9607,168.92,168.9,4.42444551]
[1729483831432,2.9607,168.92,168.91,1.48155662]
[1729483832832,2.9607,168.92,168.9,2.93405926]
[1729483833130,2.9607,168.92,168.88,2.9612]
[1729483833325,2.9607,168.92,168.89,2.9632331]
[1729483833535,2.9607,168.92,168.88,5.93306202]
[1729483833732,2.9607,168.92,168.89,2.9632331]
[1729483833935,2.9607,168.92,168.9,1.48161655]
[1729483834139,2.9607,168.92,168.88,5.95202316]
[1729483834330,2.9607,168.92,168.89,2.96321932]
[1729483834532,2.9607,168.92,168.9,1.48160966]
[1729483834728,4.58,168.94,168.88,2.99082316]
[1729483834927,4.58,168.94,168.89,2.9632367]
[1729483835131,4.58,168.94,168.9,2.96306605]
[1729483835429,4.58,168.94,168.91,2.96306605]
[1729483835635,4.58,168.94,168.92,1.48162326]
[1729483835935,4.58,168.94,168.93,1.4813917]
[1729483836140,4.58,168.94,168.93,4.43009173]
[1729483836332,4.58,168.94,168.93,1.4813917]
[1729483836737,4.58,168.94,168.93,4.47778519]
[1729483837239,4.58,168.94,168.93,2.99639349]
[1729483837639,4.58,168.94,168.93,4.47775025]
[1729483837834,4.58,168.94,168.93,4.47775026]
[1729483838744,4.58,168.94,168.93,4.47775029]
[1729483841644,2.9601,168.96,168.93,4.47775029]
[1729483841847,7.5401,168.96,168.93,2.99639349]
[1729483842838,2.9601,168.96,168.93,2.99639349]
[1729483843040,7.5401,168.96,168.93,2.99639349]
[1729483843737,4.58,168.96,168.93,2.99639349]
[1729483843946,2.9602,168.95,168.91,2.9608]
[1729483844160,2.9602,168.95,168.92,1.48139274]
[1729483844452,2.9602,168.95,168.91,5.90742474]
[1729483844657,2.9602,168.95,168.92,1.48139089]
[1729483844848,2.9602,168.95,168.93,1.48139089]
[1729483845150,2.9602,168.95,168.91,5.90742474]
[1729483845346,2.9602,168.95,168.92,1.4813896]
[1729483845550,2.9602,168.95,168.93,1.4813896]
[1729483845750,2.9602,168.95,168.91,5.90742474]
[1729483845951,2.9602,168.95,168.92,1.4813896]
[1729483846155,2.9602,168.95,168.93,1.4813896]
[1729483846358,2.9602,168.95,168.91,5.90742474]
[1729483846552,2.9602,168.95,168.92,1.48139649]
[1729483846755,2.9602,168.95,168.93,1.48139649]
[1729483846958,2.9602,168.95,168.91,5.90742474]
[1729483847159,4.58,168.96,168.92,1.48138796]
[1729483847458,4.58,168.96,168.84,4.58]
[1729483847657,4.58,168.96,168.85,2.96308648]
[1729483847855,2.9608,168.92,168.86,2.96308648]
[1729483848057,7.5408,168.92,168.87,1.48155258]
[1729483848257,2.9612,168.89,168.88,2.96310515]
[1729483848461,4.58,168.92,168.88,5.89810672]
[1729483848761,4.58,168.92,168.89,2.96320724]
[1729483849061,4.58,168.92,168.9,4.50501623]
[1729483849359,4.58,168.92,168.9,3.02341261]
[1729483849560,4.58,168.92,168.88,2.9614]
[1729483849760,4.58,168.92,168.89,2.9632227]
[1729483849964,4.58,168.92,168.9,4.43688238]
[1729483850260,4.58,168.92,168.9,2.95527103]
[1729483850462,4.58,168.92,168.88,2.9614]
[1729483850655,4.58,168.92,168.89,2.96324024]
[1729483850849,4.58,168.92,168.9,4.45762989]
[1729483851056,4.58,168.92,168.88,2.9614]
[1729483851257,4.58,168.92,168.89,2.96324024]
[1729483851457,4.58,168.92,168.9,1.48162012]
[1729483851753,4.58,168.92,168.88,5.94066872]
[1729483851957,4.58,168.92,168.89,1.48162012]
[1729483852258,4.58,168.92,168.9,1.48162012]
[1729483852461,4.58,168.92,168.88,5.94066872]
[1729483852660,4.58,168.92,168.8,137.53133602]
[1729483852858,4.58,168.92,168.83,1.48161159]